bitfinex/quotes_BTCUSD_20251114
["timestamp","ask_amount","ask_price","bid_price","bid_amount"]
[1763133509195,0.06836,96286.0,96270.0,0.323]
[1763133509409,0.06836,96286.0,96285.0,0.10479654]
[1763133509792,0.01999998,96280.0,96270.0,0.32313598]
[1763133510184,0.88711102,96280.0,96270.0,0.32313598]
[1763133510416,0.88711102,96280.0,96270.0,0.00013598]
[1763133510772,0.20773609,96276.0,96270.0,0.00013598]
[1763133510918,0.0684,96275.0,96270.0,0.00013598]
[1763133511321,0.27614019,96275.0,96270.0,0.00213598]
[1763133511579,0.0684,96275.0,96270.0,0.00213598]
[1763133512121,0.20774688,96271.0,96270.0,0.00213598]
[1763133512303,0.88711102,96280.0,96270.0,0.00213598]
[1763133512434,0.0684,96279.0,96270.0,0.00213598]
[1763133512639,0.09167647,96279.0,96270.0,0.00013598]
[1763133512834,0.0684,96279.0,96270.0,0.00013598]
[1763133513039,0.07297973,96290.0,96271.0,0.10479654]
[1763133513250,0.92009079,96290.0,96287.0,0.10479654]
[1763133513459,0.0684,96289.0,96287.0,0.10479654]
[1763133514500,0.0684,96289.0,96271.0,0.10579654]
[1763133514704,0.01999998,96280.0,96271.0,0.10479654]
[1763133514905,0.05297975,96290.0,96271.0,0.10479654]
[1763133514906,0.07297973,96290.0,96272.0,0.323]
[1763133515106,0.02037989,96340.0,96290.0,0.323]
[1763133515333,0.86711104,96320.0,96290.0,0.323]
[1763133515532,0.0684,96319.0,96290.0,0.323]
[1763133515947,0.0684,96319.0,96290.0,0.33591256]
[1763133516361,0.0684,96319.0,96291.0,0.04341874]
[1763133516633,0.12472,96347.0,96291.0,0.04341874]
[1763133516634,0.86711104,96330.0,96291.0,0.04341874]
[1763133516800,0.86711104,96330.0,96319.0,0.323]
[1763133517039,0.0684,96335.0,96319.0,0.323]
[1763133517240,0.0684,96335.0,96334.0,0.10479654]
[1763133518034,0.06853583,96335.0,96334.0,0.10479654]
[1763133518616,0.06853583,96335.0,96334.0,0.10579654]
[1763133518970,0.06853583,96335.0,96334.0,0.001]
[1763133519637,0.06853583,96335.0,96319.0,0.323]
[1763133519794,0.86711104,96330.0,96319.0,0.323]
[1763133520649,0.86711104,96330.0,96290.0,0.01291256]
[1763133520650,0.20763851,96322.0,96290.0,0.01291256]
[1763133520860,0.86711104,96310.0,96307.0,0.10479654]
[1763133521051,0.00013583,96335.0,96308.0,0.323]
[1763133521052,0.06836,96309.0,96308.0,0.323]
[1763133521994,0.06836,96309.0,96237.0,0.20781912]
[1763133521995,0.06836,96309.0,96266.0,0.07207681]
[1763133522195,0.06836,96309.0,96236.0,0.10479654]
[1763133522196,0.06836,96309.0,96305.0,0.10479654]
[1763133522411,0.06836,96309.0,96290.0,0.323]
[1763133522583,0.06836,96309.0,96282.0,0.01308487]
[1763133522763,0.32313583,96335.0,96282.0,0.01308487]
[1763133522764,0.01802975,96321.0,96304.0,0.10479654]
[1763133523169,0.06836,96320.0,96304.0,0.10479654]
[1763133523383,0.86711104,96314.0,96304.0,0.10479654]
[1763133524156,0.00013583,96335.0,96305.0,0.323]
[1763133524336,0.86711104,96330.0,96328.0,0.10479654]
[1763133524538,0.06836,96334.0,96305.0,0.323]
[1763133524749,0.86711104,96320.0,96305.0,0.323]
[1763133524979,0.06836,96319.0,96305.0,0.323]
[1763133525575,0.06836,96319.0,96304.0,0.10579654]
[1763133525951,0.06836,96319.0,96305.0,0.323]
[1763133526150,0.06836,96318.0,96305.0,0.323]
[1763133526355,0.86711104,96330.0,96305.0,0.323]
[1763133526356,0.06836,96317.0,96305.0,0.323]
[1763133528305,0.06836,96317.0,96304.0,0.10479654]
[1763133528481,0.20767121,96307.0,96305.0,0.001]
[1763133528687,0.06836,96306.0,96305.0,0.001]
[1763133529277,0.06836,96306.0,96269.0,0.10479654]
[1763133529479,0.86813094,96280.0,96269.0,0.10479654]
[1763133529685,0.08925817,96320.0,96270.0,0.323]
[1763133529895,0.59193167,96290.0,96270.0,0.32313598]
[1763133530064,0.06836,96289.0,96270.0,0.32313598]
[1763133530225,0.59193167,96290.0,96270.0,0.32313598]
[1763133530226,0.06836,96288.0,96270.0,0.32313598]
[1763133530429,0.06836,96288.0,96284.0,0.10479654]
[1763133531466,0.59193167,96300.0,96285.0,0.323]
[1763133531717,0.04341874,96336.0,96285.0,0.323]
[1763133531718,0.59193167,96310.0,96299.0,0.10479654]
[1763133531943,0.06836,96309.0,96299.0,0.10479654]
[1763133532477,0.01037882,96350.0,96300.0,0.323]
[1763133532677,0.59193167,96320.0,96319.0,0.10479654]
[1763133532896,0.0684958,96320.0,96319.0,0.10479654]
[1763133533737,0.0684958,96320.0,96319.0,0.10579654]
[1763133534000,0.0684958,96320.0,96319.0,0.42879654]
[1763133534152,0.0684958,96320.0,96319.0,0.42779654]
[1763133534352,0.0684958,96320.0,96319.0,0.42879654]
[1763133535115,0.0684958,96320.0,96319.0,0.10579654]
[1763133535978,0.0001358,96320.0,96319.0,0.10579654]
[1763133536184,0.0001358,96320.0,96319.0,0.10479654]
[1763133536599,0.0001358,96320.0,96319.0,0.001]
[1763133536815,0.0001358,96320.0,96316.0,0.06836]
[1763133537016,0.0001358,96320.0,96319.0,0.47121528]
[1763133537290,0.0001358,96320.0,96319.0,0.47321528]
[1763133537518,0.0001358,96320.0,96319.0,0.42979654]
[1763133537700,0.0001358,96320.0,96319.0,0.49815654]
[1763133538483,0.0001358,96320.0,96319.0,0.42979654]
[1763133540746,0.0001358,96320.0,96319.0,0.10679654]
[1763133542461,0.0001358,96320.0,96319.0,0.10479654]
[1763133542705,0.0001358,96320.0,96319.0,0.10579654]
[1763133543059,0.0001358,96320.0,96319.0,0.10479654]
[1763133543274,0.0001358,96320.0,96319.0,0.10579654]
[1763133543716,0.0001358,96320.0,96319.0,0.001]
[1763133543930,0.00698538,96320.0,96319.0,0.001]
[1763133544055,0.01038421,96300.0,96255.0,0.07207681]
[1763133544252,0.01038421,96300.0,96251.0,0.00068]
[1763133544253,0.06836,96299.0,96253.0,0.12060656]
[1763133544484,0.0001358,96320.0,96284.0,0.10479654]
[1763133544698,0.04388,96319.0,96305.0,0.10479654]
[1763133545310,0.20764673,96318.0,96305.0,0.10479654]
[1763133545514,0.04388,96319.0,96305.0,0.10479654]
[1763133545722,0.2076455,96318.0,96305.0,0.10479654]
[1763133545933,0.04388,96319.0,96284.0,0.10479654]
[1763133546168,0.59193167,96300.0,96299.0,0.10479654]
[1763133546372,0.06836,96300.0,96299.0,0.10479654]
[1763133547468,0.06836,96300.0,96299.0,0.42779654]
[1763133548550,0.06836,96300.0,96299.0,0.323]
[1763133548757,0.20768863,96298.0,96284.0,0.10479654]
[1763133548955,0.06836,96300.0,96284.0,0.10479654]
[1763133549159,0.59193167,96294.0,96284.0,0.10479654]
[1763133549577,0.59193167,96294.0,96285.0,0.323]
[1763133549846,0.06836,96293.0,96285.0,0.323]
[1763133550463,0.06836,96292.0,96285.0,0.323]
[1763133550674,0.06836,96291.0,96285.0,0.323]
[1763133550881,0.59193167,96300.0,96285.0,0.323]
[1763133550882,0.06836,96290.0,96286.0,0.1466]
[1763133551093,0.06836,96289.0,96286.0,0.1466]
[1763133552436,0.06836,96289.0,96275.0,0.1466]
[1763133552638,0.59193167,96285.0,96275.0,0.14673598]
[1763133552854,0.59193167,96285.0,96284.0,0.10479654]
[1763133553056,0.06836,96288.0,96284.0,0.10479654]
[1763133553236,0.06836,96288.0,96286.0,0.001]
[1763133553664,0.06836,96288.0,96284.0,0.10479654]
[1763133554331,0.06836,96288.0,96276.0,0.1466]
[1763133554569,0.59193167,96286.0,96275.0,0.00013598]
[1763133555218,0.79964672,96286.0,96275.0,0.00013598]
[1763133555474,0.59193167,96286.0,96275.0,0.00013598]
[1763133556027,0.20773584,96277.0,96275.0,0.00013598]
[1763133556263,0.06836,96276.0,96275.0,0.00013598]
[1763133556490,0.06836,96276.0,96275.0,0.00113598]
[1763133556974,0.06836,96276.0,96275.0,0.00013598]
[1763133559717,0.27609609,96276.0,96275.0,0.00013598]
[1763133560360,0.06836,96276.0,96275.0,0.00013598]
[1763133561012,0.20772165,96283.0,96275.0,0.00013598]
[1763133561233,0.02596539,96282.0,96275.0,0.00013598]
[1763133561455,0.20773453,96277.0,96275.0,0.00013598]
[1763133562116,0.20772882,96280.0,96275.0,0.00013598]
[1763133562407,0.20772306,96283.0,96275.0,0.00013598]
[1763133562408,0.0943262,96279.0,96275.0,0.00013598]
[1763133562632,0.08611742,96279.0,96275.0,0.00013598]
[1763133562847,0.20773465,96277.0,96275.0,0.00013598]
[1763133563278,0.01038745,96270.0,96237.0,0.32194598]
[1763133563491,0.0684,96269.0,96253.0,0.10479654]
[1763133563724,0.59193167,96263.0,96253.0,0.10479654]
[1763133564382,0.59193167,96263.0,96237.0,0.32194598]
[1763133564383,0.20778371,96254.0,96237.0,0.32194598]
[1763133564639,0.01052318,96270.0,96236.0,0.10479654]
[1763133564640,0.59193167,96247.0,96236.0,0.10479654]
[1763133564896,0.0684,96246.0,96236.0,0.10479654]
[1763133565376,0.20781547,96240.0,96221.0,0.10479654]
[1763133565602,0.59193167,96232.0,96221.0,0.10479654]
[1763133565835,0.0684,96231.0,96221.0,0.10479654]
[1763133566057,0.0684,96231.0,96222.0,0.323]
[1763133566609,0.0684,96231.0,96222.0,0.32345328]
[1763133567325,0.0684,96231.0,96222.0,0.32445328]
[1763133567547,0.0684,96231.0,96222.0,0.00145328]
[1763133567955,0.20784714,96225.0,96222.0,0.00145328]
[1763133568159,0.27624917,96224.0,96222.0,0.00145328]
[1763133568621,0.27624917,96224.0,96222.0,0.00045328]
[1763133568895,0.20784341,96227.0,96222.0,0.00145328]
[1763133569038,0.59193167,96232.0,96222.0,0.00145328]
[1763133569247,0.2078436,96227.0,96222.0,0.00145328]
[1763133569458,0.20785051,96223.0,96222.0,0.00145328]
[1763133569657,0.29703556,96223.0,96222.0,0.00045328]
[1763133569859,0.27625051,96223.0,96222.0,0.00045328]
[1763133570107,0.0684,96223.0,96222.0,0.00045328]
[1763133570256,0.20785032,96224.0,96222.0,0.00045328]
[1763133570464,0.19316,96223.0,96222.0,0.00045328]
[1763133570878,0.0684,96223.0,96222.0,0.00045328]
[1763133571084,0.20785032,96224.0,96222.0,0.00045328]
[1763133571297,0.0684,96223.0,96222.0,0.00045328]
[1763133571507,0.20784112,96228.0,96222.0,0.00045328]
[1763133571713,0.1248,96230.0,96222.0,0.00045328]
[1763133571922,0.0684,96227.0,96222.0,0.00045328]
[1763133572387,0.59193167,96232.0,96222.0,0.00045328]
[1763133572597,0.2762345,96231.0,96222.0,0.00045328]
[1763133572814,0.0684,96231.0,96222.0,0.00045328]
[1763133572981,0.20784981,96224.0,96222.0,0.00045328]
[1763133573206,0.0684,96223.0,96222.0,0.00045328]
[1763133573836,0.2078494,96224.0,96222.0,0.00045328]
[1763133574051,0.0684,96223.0,96222.0,0.00045328]
[1763133574266,0.43481874,96223.0,96222.0,0.00045328]
[1763133574833,0.57429517,96211.0,96210.0,0.0004]
[1763133575068,0.64269517,96211.0,96210.0,0.00080054]
[1763133576708,0.71954814,96211.0,96210.0,0.00080054]
[1763133577593,0.84434814,96211.0,96210.0,0.00080054]
[1763133577996,0.20794127,96181.0,96180.0,0.0004]
[1763133578161,0.27634127,96181.0,96180.0,0.00053609]
[1763133578361,0.0684,96181.0,96180.0,0.00053609]
[1763133578564,0.59193167,96190.0,96180.0,0.00053609]
[1763133578818,0.38112266,96189.0,96180.0,0.00053609]
[1763133579188,0.59193167,96190.0,96180.0,0.00053609]
[1763133579389,0.01039392,96210.0,96180.0,0.00053609]
[1763133579390,0.20788075,96209.0,96180.0,0.00053609]
[1763133579590,0.59193167,96190.0,96180.0,0.00053609]
[1763133579942,0.59193167,96190.0,96181.0,0.10479654]
[1763133580128,0.06844,96189.0,96181.0,0.10479654]
[1763133580543,0.59193167,96190.0,96180.0,0.00053609]
[1763133580745,0.06844,96188.0,96180.0,0.00053609]
[1763133581470,0.09039658,96188.0,96180.0,0.00053609]
[1763133581713,0.2079283,96187.0,96180.0,0.00053609]
[1763133581915,0.20793238,96186.0,96180.0,0.00053609]
[1763133582122,0.06844,96188.0,96180.0,0.00053609]
[1763133582351,0.20793977,96182.0,96180.0,0.00053609]
[1763133582589,0.06844,96181.0,96180.0,0.00053609]
[1763133582983,0.27638127,96181.0,96180.0,0.00053609]
[1763133583113,0.20794127,96181.0,96180.0,0.00053609]
[1763133583310,0.27638127,96181.0,96180.0,0.00053609]
[1763133584363,0.64280001,96181.0,96180.0,0.00053609]
[1763133584572,0.64280001,96181.0,96150.0,0.0004]
[1763133584573,0.20800615,96151.0,96150.0,0.0004]
[1763133584767,0.06844,96151.0,96150.0,0.00053614]
[1763133584967,0.27644615,96151.0,96150.0,0.00053614]
[1763133586500,0.06844,96151.0,96150.0,0.00053614]
[1763133587112,0.27644615,96151.0,96150.0,0.00053614]
[1763133587816,0.06844,96151.0,96150.0,0.00053614]
[1763133588424,0.45399833,96151.0,96150.0,0.00053614]
[1763133588628,0.55973874,96151.0,96150.0,0.00053614]
[1763133589251,0.20806576,96124.0,96110.0,0.0004]
[1763133589452,0.04341874,96149.0,96110.0,0.0004]
[1763133589453,0.06844,96123.0,96120.0,0.00053621]
[1763133590249,0.87126363,96130.0,96120.0,0.00053621]
[1763133590445,0.06844,96129.0,96121.0,0.10479654]
[1763133590650,0.87126363,96130.0,96121.0,0.10479654]
[1763133591089,0.87126363,96140.0,96121.0,0.10479654]
[1763133591441,0.06844,96139.0,96121.0,0.10479654]
[1763133591670,0.87126363,96140.0,96122.0,0.323]
[1763133591891,0.06844,96139.0,96122.0,0.323]
[1763133592104,0.87114134,96132.0,96122.0,0.323]
[1763133592245,0.06844,96131.0,96122.0,0.323]
[1763133592445,0.06844,96131.0,96121.0,0.10479654]
[1763133592733,0.06844,96131.0,96122.0,0.323]
[1763133592934,0.87126363,96140.0,96122.0,0.323]
[1763133593138,0.87126363,96132.0,96122.0,0.324]
[1763133593267,0.20805436,96129.0,96122.0,0.001]
[1763133593644,0.87126363,96132.0,96122.0,0.001]
[1763133593830,0.06844,96128.0,96122.0,0.001]
[1763133594084,0.20805808,96127.0,96122.0,0.001]
[1763133594282,0.06844,96128.0,96122.0,0.001]
[1763133594418,0.06844,96128.0,96112.0,0.10479654]
[1763133594619,0.00013563,96128.0,96112.0,0.10479654]
[1763133594890,0.06844,96127.0,96112.0,0.10479654]
[1763133595082,0.87126363,96122.0,96121.0,0.001]
[1763133595290,0.06844,96127.0,96097.0,0.10479654]
[1763133595460,0.87126363,96110.0,96097.0,0.10479654]
[1763133595649,0.06844,96109.0,96097.0,0.10479654]
[1763133596435,0.068399,96109.0,96098.0,0.323]
[1763133597463,0.00024462,96108.0,96098.0,0.323]
[1763133598258,2.849e-05,96108.0,96098.0,0.323]
[1763133598611,2.849e-05,96108.0,96098.0,0.324]
[1763133598902,2.849e-05,96108.0,96098.0,0.323]
[1763133599099,2.849e-05,96108.0,96098.0,0.324]
[1763133600417,0.06848,96107.0,96098.0,0.324]
[1763133601021,2.849e-05,96108.0,96099.0,0.04341874]
[1763133601363,0.00013563,96128.0,96101.0,0.04341874]
[1763133601364,0.06848,96125.0,96101.0,0.04341874]
[1763133601594,0.00013563,96128.0,96100.0,0.11066232]
[1763133601595,0.00013563,96128.0,96125.0,0.36641874]
[1763133602958,0.00013563,96128.0,96125.0,0.36941874]
[1763133603143,0.00013563,96128.0,96125.0,0.36641874]
[1763133603345,0.00013563,96128.0,96127.0,0.36641874]
[1763133603682,2.953e-05,96128.0,96127.0,0.36641874]
[1763133603878,2.953e-05,96128.0,96127.0,0.76641874]
[1763133604529,0.00568,96173.0,96141.0,0.36641874]
[1763133604735,0.01039284,96220.0,96173.0,0.323]
[1763133604906,0.20786131,96218.0,96191.0,0.10479654]
[1763133605107,0.20786131,96218.0,96173.0,0.323]
[1763133605108,0.87126363,96201.0,96173.0,0.323]
[1763133605451,0.00013624,96220.0,96188.0,0.323]
[1763133605626,0.06848,96219.0,96188.0,0.323]
[1763133605823,0.87126363,96210.0,96188.0,0.323]
[1763133606027,0.06848,96219.0,96188.0,0.323]
[1763133606028,0.87126363,96200.0,96188.0,0.323]
[1763133606208,0.09446779,96199.0,96188.0,0.323]
[1763133606416,0.30237226,96199.0,96188.0,0.323]
[1763133606631,0.01039609,96190.0,96157.0,0.07386159]
[1763133606839,0.01039609,96190.0,96151.0,0.10479654]
[1763133606840,0.87126363,96180.0,96166.0,0.10479654]
[1763133607041,0.20798332,96162.0,96151.0,0.10479654]
[1763133607238,0.06844,96161.0,96152.0,0.323]
[1763133607438,0.06844,96166.0,96152.0,0.323]
[1763133607663,0.0458,96169.0,96153.0,0.04341874]
[1763133607866,0.00013614,96166.0,96153.0,0.04341874]
[1763133608077,0.00013614,96166.0,96152.0,0.323]
[1763133608911,0.00013614,96166.0,96152.0,0.325]
[1763133609114,0.06844,96165.0,96152.0,0.325]
[1763133609253,0.06844,96164.0,96152.0,0.323]
[1763133609462,0.06844,96164.0,96153.0,0.04341874]
[1763133609665,0.00013614,96166.0,96155.0,0.04341874]
[1763133610096,0.00013614,96166.0,96154.0,0.323]
[1763133610660,0.00013614,96166.0,96153.0,0.07386159]
[1763133611486,0.00013614,96166.0,96155.0,0.07386159]
[1763133611712,0.00013614,96166.0,96164.0,0.323]
[1763133611912,1.589e-05,96166.0,96165.0,0.43485874]
[1763133612281,0.20782027,96237.0,96166.0,0.36641874]
[1763133612487,0.00045389,96237.0,96207.0,0.10479654]
[1763133612701,0.00045389,96237.0,96208.0,0.323]
[1763133612702,0.06844,96236.0,96208.0,0.323]
[1763133613139,0.01683712,96235.0,96209.0,0.04341874]
[1763133613352,0.00045389,96237.0,96211.0,0.36641874]
[1763133613968,0.00045389,96237.0,96214.0,0.04341874]
[1763133614407,0.00045389,96237.0,96236.0,0.42779654]
[1763133614624,0.00045389,96237.0,96236.0,0.47121528]
[1763133614865,0.00145389,96237.0,96236.0,0.47121528]
[1763133615088,0.00045389,96237.0,96236.0,0.47121528]
[1763133616035,0.00045389,96237.0,96236.0,0.47321528]
[1763133617643,0.00045389,96237.0,96236.0,0.42979654]
[1763133617902,0.00045389,96237.0,96236.0,0.10679654]
[1763133618160,0.00045389,96237.0,96236.0,0.002]
[1763133618634,0.20827416,96237.0,96236.0,0.002]
[1763133618832,0.20827416,96237.0,96210.0,0.323]
[1763133618833,0.20782454,96236.0,96210.0,0.323]
[1763133619031,0.20782454,96236.0,96170.0,0.10232698]
[1763133619032,0.87126363,96230.0,96180.0,0.87126363]
[1763133619244,0.01417874,96229.0,96194.0,0.01441774]
[1763133619446,0.01417874,96229.0,96208.0,0.323]
[1763133619653,0.20784237,96227.0,96208.0,0.323]
[1763133619877,0.00045389,96237.0,96208.0,0.323]
[1763133619878,0.29493077,96226.0,96208.0,0.323]
[1763133620080,0.02598077,96225.0,96208.0,0.323]
[1763133620288,0.01740823,96225.0,96193.0,0.4]
[1763133620703,0.01740823,96225.0,96208.0,0.323]
[1763133621522,0.0684,96226.0,96181.0,0.01407403]
[1763133621523,0.87126363,96220.0,96181.0,0.01407403]
[1763133621724,0.02598239,96219.0,96177.0,0.10479654]
[1763133621977,0.02598239,96219.0,96208.0,0.001]
[1763133622380,0.20787853,96211.0,96208.0,0.001]
[1763133622598,0.27628057,96210.0,96208.0,0.001]
[1763133622810,0.27628057,96210.0,96177.0,0.10479654]
[1763133622811,0.07879392,96210.0,96177.0,0.10479654]
[1763133623071,0.87126363,96200.0,96177.0,0.10479654]
[1763133623302,0.20791429,96194.0,96192.0,0.001]
[1763133623510,0.0684,96193.0,96192.0,0.001]
[1763133623714,0.27631533,96193.0,96192.0,0.001]
[1763133624375,0.0684,96193.0,96168.0,0.10479654]
[1763133624592,0.87126363,96180.0,96159.0,0.323]
[1763133624811,0.87126363,96180.0,96166.0,0.10479654]
[1763133625026,0.0684,96179.0,96166.0,0.10479654]
[1763133625226,0.0684,96178.0,96166.0,0.10479654]
[1763133625359,0.01039284,96220.0,96167.0,0.323]
[1763133625360,0.01039392,96210.0,96167.0,0.323]
[1763133625561,0.01244662,96218.0,96182.0,0.323]
[1763133625764,0.0684,96217.0,96196.0,0.10479654]
[1763133625977,0.02212751,96216.0,96196.0,0.10479654]
[1763133626183,0.09438347,96215.0,96197.0,0.323]
[1763133626502,0.07,96208.0,96197.0,0.323]
[1763133627072,0.0684,96207.0,96197.0,0.323]
[1763133627282,0.07013611,96208.0,96197.0,0.323]
[1763133627519,0.0684,96206.0,96197.0,0.323]
[1763133627763,0.0684,96206.0,96181.0,0.10479654]
[1763133627980,0.0684,96206.0,96198.0,0.10479654]
[1763133629787,0.0684,96206.0,96182.0,0.323]
[1763133630651,0.0684,96205.0,96197.0,0.323]
[1763133631047,0.00013611,96208.0,96199.0,0.323]
[1763133631264,0.0684,96205.0,96199.0,0.323]
[1763133631722,0.00013611,96208.0,96199.0,0.323]
[1763133631999,0.0684,96207.0,96199.0,0.323]
[1763133633994,0.0684,96207.0,96199.0,0.725]
[1763133634212,0.00013611,96208.0,96199.0,0.325]
[1763133634432,0.00013611,96208.0,96199.0,0.323]
[1763133634905,0.00013611,96208.0,96200.0,0.04341874]
[1763133637110,0.00013611,96208.0,96200.0,0.04541874]
[1763133637821,0.00013611,96208.0,96202.0,0.36641874]
[1763133639775,0.00013611,96208.0,96204.0,0.36641874]
[1763133640389,0.00013611,96208.0,96205.0,0.4]
[1763133640606,0.20779131,96251.0,96205.0,0.4]
[1763133640607,0.87126363,96260.0,96206.0,0.43481874]
[1763133640826,0.02597159,96259.0,96239.0,0.10479654]
[1763133641039,0.0684,96259.0,96239.0,0.10479654]
[1763133641255,0.0684,96259.0,96240.0,0.323]
[1763133641497,0.0004538,96260.0,96256.0,0.323]
[1763133644146,0.0004538,96260.0,96256.0,0.325]
[1763133644345,0.0004538,96260.0,96256.0,0.323]
[1763133644548,0.0004538,96260.0,96256.0,0.324]
[1763133646166,0.0004538,96260.0,96257.0,0.04341874]
[1763133647056,0.0004538,96260.0,96259.0,0.36641874]
[1763133648210,0.0002,96340.0,96260.0,0.00999999]
[1763133648587,0.00033613,96310.0,96291.0,0.04341874]
[1763133648791,0.00033613,96310.0,96294.0,0.04341874]
[1763133649341,0.00033613,96310.0,96309.0,0.42779654]
[1763133649544,0.00033613,96310.0,96309.0,0.82779654]
[1763133649948,0.00033613,96310.0,96309.0,0.8863473]
[1763133650750,0.00033613,96310.0,96309.0,0.9547073]
[1763133650947,0.00033613,96310.0,96309.0,0.9567073]
[1763133651266,0.00033613,96310.0,96309.0,0.9547073]
[1763133651449,0.00033613,96310.0,96309.0,0.87121528]
[1763133651623,0.00033613,96310.0,96309.0,0.87321528]
[1763133652027,0.00033613,96310.0,96309.0,0.42979654]
[1763133652821,0.00033613,96310.0,96309.0,0.42779654]
[1763133653219,0.00033613,96310.0,96309.0,0.42979654]
[1763133653422,0.00033613,96310.0,96309.0,0.42779654]
[1763133653621,0.00033613,96310.0,96309.0,0.42979654]
[1763133654105,0.00033613,96310.0,96309.0,0.42779654]
[1763133654311,0.00033613,96310.0,96309.0,0.42979654]
[1763133655422,0.00033613,96310.0,96309.0,0.47321528]
[1763133656384,0.00033613,96310.0,96309.0,0.42979654]
[1763133657178,0.00033613,96310.0,96309.0,0.42779654]
[1763133657620,0.00033613,96310.0,96309.0,0.42979654]
[1763133657825,0.00033613,96310.0,96309.0,0.42779654]
[1763133659083,0.00033613,96310.0,96309.0,0.42979654]
[1763133659499,0.06865613,96310.0,96266.0,0.07403458]
[1763133659706,0.59123355,96304.0,96264.0,0.03117872]
[1763133659907,0.59123355,96304.0,96239.0,0.23238975]
[1763133659908,0.59123355,96304.0,96289.0,0.10479654]
[1763133660114,0.06832,96303.0,96290.0,0.323]
[1763133660522,0.59123355,96300.0,96290.0,0.323]
[1763133660670,0.06832,96302.0,96290.0,0.323]
[1763133660875,0.59123355,96300.0,96289.0,0.10479654]
[1763133661081,0.59123355,96300.0,96275.0,0.323]
[1763133661279,0.06832,96302.0,96290.0,0.10479654]
[1763133661681,0.59156968,96310.0,96290.0,0.10479654]
[1763133661885,0.00033613,96310.0,96290.0,0.10479654]
[1763133662067,0.06832,96309.0,96290.0,0.10479654]
[1763133662267,0.59123355,96300.0,96290.0,0.10479654]
[1763133662498,0.00033613,96310.0,96290.0,0.10479654]
[1763133662699,0.06832,96304.0,96290.0,0.10479654]
[1763133663281,0.59123355,96300.0,96290.0,0.10479654]
[1763133663652,0.06832,96304.0,96290.0,0.10479654]
[1763133664074,0.06832,96304.0,96274.0,0.10479654]
[1763133664075,0.59123355,96300.0,96274.0,0.10479654]
[1763133664276,0.59123355,96285.0,96275.0,0.0190855]
[1763133664407,0.04335984,96284.0,96276.0,0.0190855]
[1763133664609,0.04335984,96284.0,96277.0,0.0190855]
[1763133664794,0.04335984,96284.0,96278.0,0.0190855]
[1763133664995,0.04335984,96284.0,96279.0,0.0190855]
[1763133665195,0.04335984,96284.0,96271.0,0.10479654]
[1763133665419,0.20772575,96281.0,96271.0,0.10479654]
[1763133665715,0.01038745,96270.0,96239.0,0.10479654]
[1763133665913,0.06832,96269.0,96254.0,0.10479654]
[1763133666313,0.06832,96269.0,96239.0,0.10479654]
[1763133666521,0.60162208,96260.0,96214.0,0.07403458]
[1763133666722,0.60162208,96260.0,96200.0,0.01999998]
[1763133666723,0.59123355,96240.0,96209.0,0.07403458]
[1763133667039,0.01039176,96230.0,96197.0,0.07403458]
[1763133667196,0.20783755,96229.0,96213.0,0.10479654]
[1763133667400,0.20784164,96228.0,96213.0,0.10479654]
[1763133667619,0.2182287,96230.0,96213.0,0.10479654]
[1763133667620,0.21822931,96230.0,96214.0,0.323]
[1763133667974,0.20782891,96233.0,96214.0,0.3234538]
[1763133668139,0.59123355,96234.0,96214.0,0.3234538]
[1763133668515,0.59123355,96224.0,96214.0,0.0004538]
[1763133668799,0.20786124,96219.0,96214.0,0.0004538]
[1763133668974,0.20786016,96219.0,96214.0,0.0004538]
[1763133669185,0.06832,96223.0,96214.0,0.0004538]
[1763133669186,0.20786638,96216.0,96214.0,0.0004538]
[1763133669390,0.20785666,96221.0,96214.0,0.0004538]
[1763133669589,0.06832,96223.0,96214.0,0.0004538]
[1763133670172,0.06832,96222.0,96214.0,0.0004538]
[1763133671020,0.20786638,96216.0,96214.0,0.0004538]
[1763133671236,0.06832,96222.0,96214.0,0.0004538]
[1763133671452,0.20786652,96216.0,96214.0,0.0004538]
[1763133672093,0.06832,96222.0,96214.0,0.0004538]
[1763133672336,0.27617483,96222.0,96214.0,0.0004538]
[1763133672543,0.06832,96222.0,96214.0,0.0004538]
[1763133672744,0.20783517,96231.0,96214.0,0.0004538]
[1763133672944,0.06836,96223.0,96214.0,0.0004538]
[1763133673608,0.06836,96222.0,96214.0,0.0004538]
[1763133674228,0.20786739,96216.0,96214.0,0.0004538]
[1763133674543,0.36641874,96215.0,96214.0,0.0004538]
[1763133675545,0.36641874,96215.0,96160.0,0.05581949]
[1763133675546,0.01039609,96190.0,96160.0,0.0004]
[1763133675753,0.59123355,96170.0,96160.0,0.00053611]
[1763133675963,0.06836,96169.0,96162.0,0.323]
[1763133676160,0.06836,96168.0,96162.0,0.323]
[1763133676411,0.06836,96167.0,96162.0,0.323]
[1763133677037,0.06836,96167.0,96160.0,0.00053611]
[1763133677244,0.06836,96167.0,96162.0,0.001]
[1763133677867,0.06836,96167.0,96162.0,0.002]
[1763133678161,0.2079802,96163.0,96162.0,0.002]
[1763133678365,0.2079802,96163.0,96162.0,0.001]
[1763133678767,0.03039607,96190.0,96162.0,0.002]
[1763133678985,0.59123355,96172.0,96162.0,0.002]
[1763133679207,0.20798452,96161.0,96160.0,0.00053611]
[1763133679393,0.20798129,96163.0,96162.0,0.001]
[1763133679625,0.20798129,96163.0,96131.0,0.10479654]
[1763133679626,0.20798996,96159.0,96132.0,0.323]
[1763133679804,0.06836,96158.0,96132.0,0.32313614]
[1763133680036,0.20799712,96156.0,96131.0,0.07369198]
[1763133680237,0.59123355,96150.0,96131.0,0.04245128]
[1763133680451,0.00013593,96150.0,96131.0,0.04245128]
[1763133681625,0.06836,96149.0,96146.0,0.10479654]
[1763133682064,0.00013593,96150.0,96147.0,0.323]
[1763133683197,0.00013593,96150.0,96140.0,0.01]
[1763133683403,0.20802668,96142.0,96140.0,0.01]
[1763133683607,0.59136948,96150.0,96140.0,0.01]
[1763133684064,0.20802683,96142.0,96140.0,0.01]
[1763133684270,0.2080207,96145.0,96140.0,0.01]
[1763133684481,0.06836,96149.0,96147.0,0.002]
[1763133684728,0.27637225,96149.0,96147.0,0.002]
[1763133684939,0.59136948,96150.0,96140.0,0.01]
[1763133684940,0.0684,96148.0,96140.0,0.01]
[1763133685148,0.20802636,96142.0,96140.0,0.011]
[1763133685352,0.20802636,96142.0,96140.0,0.01]
[1763133685576,0.0684,96141.0,96140.0,0.01]